[Event "44th Chess Olympiad Women 2022"]
[Site "Chennai"]
[Date "2022.08.01"]
[Round "4.54"]
[White "Sokolova, Victoria"]
[Black "Takali Milly"]
[Result "0-1"]
[WhiteElo "1193"]
[BlackElo "1482"]
[Annotator "NA RC"]
[PlyCount "134"]
[EventDate "2022.??.??"]
[TimeControl "60"]

1. e4 {[%emt 0:00:12]} c6 {[%emt 0:00:37]} 2. Nc3 {[%emt 0:00:15]} d5 {[%emt 0:
00:00]} 3. exd5 {[%emt 0:00:10]} cxd5 {[%emt 0:00:03]} 4. d4 {[%emt 0:00:10]}
Nf6 {[%emt 0:00:20]} 5. Nf3 {[%emt 0:00:21]} Nc6 {[%emt 0:00:09]} 6. Bf4 {
[%emt 0:01:23]} a6 {[%emt 0:01:31]} 7. h3 {[%emt 0:00:21]} Bf5 {[%emt 0:00:18]}
8. Bd3 {[%emt 0:00:26]} g6 {[%emt 0:03:18]} 9. O-O {[%emt 0:03:28]} e6 {
[%emt 0:00:02]} 10. a3 {[%emt 0:00:17]} Bd6 {[%emt 0:01:19]} 11. Be5 {[%emt 0:
00:00]} Bxe5 {[%emt 0:00:52]} 12. dxe5 {[%emt 0:00:15]} Nd7 {[%emt 0:00:07]}
13. Qe2 {[%emt 0:01:23]} O-O {[%emt 0:01:21]} 14. Bxf5 {[%emt 0:01:08]} gxf5 {
[%emt 0:00:03]} 15. Rad1 {[%emt 0:03:25]} Qc7 {[%emt 0:03:00]} 16. Rfe1 {
[%emt 0:08:45]} Kh8 {[%emt 0:00:11]} 17. Qe3 {[%emt 0:03:12]} Rg8 {[%emt 0:00:
00]} 18. Qh6 {[%emt 0:00:31]} Rg7 {[%emt 0:01:49]} 19. Kh1 {[%emt 0:02:56]}
Rag8 {[%emt 0:00:08]} 20. g3 {[%emt 0:00:43]} Ndxe5 {[%emt 0:00:20]} 21. Nxe5 {
[%emt 0:04:33]} Nxe5 {[%emt 0:00:06]} 22. Qf6 {[%emt 0:00:14]} Nd7 {[%emt 0:00:
00]} 23. Qh4 {[%emt 0:02:40]} Qc5 {[%emt 0:00:34]} 24. Qd4 {[%emt 0:04:29]}
Qxd4 {[%emt 0:00:48]} 25. Rxd4 {[%emt 0:00:26]} Nc5 {[%emt 0:00:54]} 26. b4 {
[%emt 0:01:48]} Ne4 {[%emt 0:00:08]} 27. Nxe4 {[%emt 0:07:03]} fxe4 {[%emt 0:
00:00]} 28. c4 {[%emt 0:00:27]} f5 {[%emt 0:03:59]} 29. cxd5 {[%emt 0:02:29]}
Rd7 {[%emt 0:00:20]} 30. Red1 {[%emt 0:00:56]} Rgd8 {[%emt 0:00:09]} 31. d6 {
[%emt 0:00:08]} Kg7 {[%emt 0:00:14]} 32. Kg2 {[%emt 0:00:17]} Kf6 {[%emt 0:00:
00]} 33. f4 {[%emt 0:00:28]} e5 {[%emt 0:02:36]} 34. fxe5+ {[%emt 0:01:52]}
Kxe5 {[%emt 0:00:04]} 35. Rd5+ {[%emt 0:00:07]} Ke6 {[%emt 0:00:06]} 36. Kf2 {
[%emt 0:00:56]} Rxd6 {[%emt 0:00:23]} 37. Rxd6+ {[%emt 0:00:54]} Rxd6 {[%emt 0:
00:00]} 38. Rc1 {[%emt 0:00:20]} Rd2+ {[%emt 0:02:16]} 39. Ke3 {[%emt 0:00:29]}
Rd3+ {[%emt 0:00:05]} 40. Kf2 {[%emt 0:00:49]} Rxa3 {[%emt 0:01:11]} 41. Rc7 {
[%emt 0:30:07]} b5 {[%emt 0:30:18]} 42. Rxh7 {[%emt 0:00:19]} a5 {[%emt 0:00:
00]} 43. bxa5 {[%emt 0:01:45]} Rxa5 {[%emt 0:00:03]} 44. Rh6+ {[%emt 0:00:11]}
Ke5 {[%emt 0:00:05]} 45. Rh5 {[%emt 0:00:33]} b4 {[%emt 0:00:12]} 46. g4 {
[%emt 0:00:36]} Kf4 {[%emt 0:00:05]} 47. gxf5 {[%emt 0:01:16]} Rxf5 {[%emt 0:
00:00]} 48. Rxf5+ {[%emt 0:00:47]} Kxf5 {[%emt 0:00:03]} 49. Ke3 {[%emt 0:00:
00]} b3 {[%emt 0:00:03]} 50. Kd2 {[%emt 0:00:07]} e3+ {[%emt 0:00:35]} 51. Kxe3
{[%emt 0:01:00]} b2 {[%emt 0:00:03]} 52. h4 {[%emt 0:00:30]} b1=Q {[%emt 0:00:
00]} 53. h5 {[%emt 0:00:14]} Qh1 {[%emt 0:01:48]} 54. h6 {[%emt 0:00:21]} Qxh6+
{[%emt 0:00:07]} 55. Kd4 {[%emt 0:00:04]} Qd2+ {[%emt 0:00:57]} 56. Kc4 {
[%emt 0:00:19]} Ke4 {[%emt 0:01:15]} 57. Kb5 {[%emt 0:00:14]} Qd4 {[%emt 0:00:
00]} 58. Kc6 {[%emt 0:00:14]} Ke5 {[%emt 0:00:14]} 59. Kb7 {[%emt 0:00:30]} Qc4
{[%emt 0:01:43]} 60. Kb6 {[%emt 0:00:19]} Kd6 {[%emt 0:00:09]} 61. Kb7 {
[%emt 0:00:11]} Qb5+ {[%emt 0:02:09]} 62. Kc8 {[%emt 0:00:23]} Qc6+ {[%emt 0:
00:00]} 63. Kb8 {[%emt 0:00:15]} Qc2 {[%emt 0:01:39]} 64. Kb7 {[%emt 0:00:13]}
Kd7 {[%emt 0:00:16]} 65. Kb8 {[%emt 0:00:15]} Qb2+ {[%emt 0:01:10]} 66. Ka7 {
[%emt 0:00:17]} Kc6 {[%emt 0:00:25]} 67. Ka8 {[%emt 0:00:08]} Qb7# {[%emt 0:00:
00]} 0-1

[Event "44th Chess Olympiad Women 2022"]
[Site "Chennai"]
[Date "2022.08.01"]
[Round "4.55"]
[White "Kannappan, Sigappi"]
[Black "Spinola, Divania"]
[Result "1-0"]
[WhiteElo "1914"]
[BlackElo "1425"]
[Annotator "NA RC"]
[PlyCount "127"]
[EventDate "2022.??.??"]
[TimeControl "60"]

1. e4 {[%emt 0:00:34]} e5 {[%emt 0:00:14]} 2. Nf3 {[%emt 0:00:04]} Nc6 {
[%emt 0:00:15]} 3. Bb5 {[%emt 0:00:04]} a6 {[%emt 0:00:31]} 4. Bxc6 {[%emt 0:
00:00]} bxc6 {[%emt 0:00:19]} 5. O-O {[%emt 0:01:50]} Nf6 {[%emt 0:00:13]} 6.
Nxe5 {[%emt 0:00:30]} Qe7 {[%emt 0:01:52]} 7. d4 {[%emt 0:00:35]} g6 {[%emt 0:
00:00]} 8. Bg5 {[%emt 0:07:44]} Bg7 {[%emt 0:10:39]} 9. Ng4 {[%emt 0:07:42]} d6
{[%emt 0:02:22]} 10. Nxf6+ {[%emt 0:09:09]} Bxf6 {[%emt 0:00:28]} 11. Bxf6 {
[%emt 0:00:13]} Qxf6 {[%emt 0:00:10]} 12. e5 {[%emt 0:02:17]} Qe6 {[%emt 0:00:
00]} 13. exd6 {[%emt 0:00:28]} Qxd6 {[%emt 0:00:15]} 14. Re1+ {[%emt 0:01:45]}
Be6 {[%emt 0:00:22]} 15. Nc3 {[%emt 0:03:38]} O-O {[%emt 0:00:20]} 16. Ne4 {
[%emt 0:00:41]} Qe7 {[%emt 0:01:48]} 17. Nc5 {[%emt 0:02:51]} Qf6 {[%emt 0:00:
00]} 18. c3 {[%emt 0:08:54]} Rfd8 {[%emt 0:03:22]} 19. Nxe6 {[%emt 0:01:18]}
fxe6 {[%emt 0:00:15]} 20. Qe2 {[%emt 0:00:21]} Rf8 {[%emt 0:05:48]} 21. Qxe6+ {
[%emt 0:01:08]} Qxe6 {[%emt 0:00:22]} 22. Rxe6 {[%emt 0:00:06]} Rf7 {[%emt 0:
00:00]} 23. Rae1 {[%emt 0:01:32]} Rb8 {[%emt 0:04:22]} 24. b3 {[%emt 0:00:03]}
Rbf8 {[%emt 0:03:14]} 25. f3 {[%emt 0:00:25]} Ra8 {[%emt 0:04:40]} 26. Rxc6 {
[%emt 0:00:47]} a5 {[%emt 0:00:16]} 27. Rce6 {[%emt 0:01:12]} a4 {[%emt 0:00:
00]} 28. Re8+ {[%emt 0:01:15]} Rf8 {[%emt 0:01:25]} 29. Rxa8 {[%emt 0:00:39]}
Rxa8 {[%emt 0:00:14]} 30. b4 {[%emt 0:00:09]} a3 {[%emt 0:00:31]} 31. Re7 {
[%emt 0:00:49]} Rc8 {[%emt 0:00:42]} 32. Re5 {[%emt 0:02:56]} Kf7 {[%emt 0:00:
00]} 33. Kf2 {[%emt 0:00:41]} Rd8 {[%emt 0:00:53]} 34. Ke3 {[%emt 0:01:34]} Rd7
{[%emt 0:01:14]} 35. Kd3 {[%emt 0:01:41]} Rd6 {[%emt 0:01:48]} 36. Kc4 {
[%emt 0:00:22]} Rc6+ {[%emt 0:00:31]} 37. Kb3 {[%emt 0:00:06]} Kf6 {[%emt 0:00:
00]} 38. c4 {[%emt 0:00:48]} Ra6 {[%emt 0:01:24]} 39. b5 {[%emt 0:00:16]} Ra7 {
[%emt 0:00:27]} 40. Kb4 {[%emt 0:00:36]} Ra8 {[%emt 0:01:10]} 41. Re3 {[%emt 0:
00:00]} Rb8 {[%emt 0:30:36]} 42. Kxa3 {[%emt 0:00:48]} Ra8+ {[%emt 0:00:22]}
43. Kb3 {[%emt 0:00:08]} Rd8 {[%emt 0:00:27]} 44. d5 {[%emt 0:00:10]} Kg5 {
[%emt 0:01:26]} 45. Re7 {[%emt 0:01:17]} h5 {[%emt 0:02:21]} 46. Rxc7 {[%emt 0:
00:00]} Re8 {[%emt 0:00:59]} 47. b6 {[%emt 0:00:21]} Re3+ {[%emt 0:01:25]} 48.
Kb4 {[%emt 0:00:27]} Re8 {[%emt 0:00:31]} 49. b7 {[%emt 0:00:07]} Rb8 {[%emt 0:
00:00]} 50. Kc5 {[%emt 0:00:07]} Kf5 {[%emt 0:00:15]} 51. Kc6 {[%emt 0:00:06]}
Ke5 {[%emt 0:00:34]} 52. Rc8 {[%emt 0:00:07]} Rxb7 {[%emt 0:01:00]} 53. Kxb7 {
[%emt 0:00:02]} Kd6 {[%emt 0:00:28]} 54. c5+ {[%emt 0:00:15]} Kxd5 {[%emt 0:00:
00]} 55. c6 {[%emt 0:00:03]} Kd4 {[%emt 0:00:55]} 56. c7 {[%emt 0:00:05]} Ke3 {
[%emt 0:00:08]} 57. Rg8 {[%emt 0:00:09]} Kf2 {[%emt 0:00:35]} 58. c8=Q {
[%emt 0:00:09]} Kxg2 {[%emt 0:00:13]} 59. Rxg6+ {[%emt 0:00:08]} Kxf3 {[%emt 0:
00:00]} 60. Qf5+ {[%emt 0:00:03]} Ke3 {[%emt 0:00:23]} 61. Rd6 {[%emt 0:00:30]}
h4 {[%emt 0:00:19]} 62. Rd3+ {[%emt 0:00:05]} Ke2 {[%emt 0:00:11]} 63. Qf3+ {
[%emt 0:00:05]} Ke1 {[%emt 0:00:10]} 64. Rd1# {[%emt 0:00:03]} 1-0

[Event "44th Chess Olympiad Women 2022"]
[Site "Chennai"]
[Date "2022.08.01"]
[Round "4.55"]
[White "Li, Joy Ching"]
[Black "Pio Monteiro, Juliana"]
[Result "1-0"]
[WhiteElo "1386"]
[BlackElo "1319"]
[Annotator "NA RC"]
[PlyCount "59"]
[EventDate "2022.??.??"]
[TimeControl "60"]

1. Nf3 {[%emt 0:00:03]} c5 {[%emt 0:00:44]} 2. g3 {[%emt 0:00:06]} d6 {[%emt 0:
00:00]} 3. Bg2 {[%emt 0:00:17]} Nf6 {[%emt 0:00:11]} 4. O-O {[%emt 0:00:13]}
Nc6 {[%emt 0:00:09]} 5. d4 {[%emt 0:00:15]} cxd4 {[%emt 0:00:55]} 6. Nxd4 {
[%emt 0:00:13]} Nxd4 {[%emt 0:00:10]} 7. Qxd4 {[%emt 0:00:14]} e6 {[%emt 0:00:
00]} 8. c4 {[%emt 0:00:54]} Be7 {[%emt 0:00:48]} 9. Nc3 {[%emt 0:00:56]} O-O {
[%emt 0:00:39]} 10. Rd1 {[%emt 0:01:29]} a6 {[%emt 0:02:02]} 11. Bg5 {[%emt 0:
00:00]} Ne8 {[%emt 0:04:19]} 12. Bxe7 {[%emt 0:03:11]} Qxe7 {[%emt 0:00:12]}
13. Ne4 {[%emt 0:01:42]} e5 {[%emt 0:06:40]} 14. Qb6 {[%emt 0:01:07]} Be6 {
[%emt 0:02:34]} 15. b3 {[%emt 0:02:00]} Rd8 {[%emt 0:00:40]} 16. Nc5 {[%emt 0:
00:00]} Qc7 {[%emt 0:04:31]} 17. Qxc7 {[%emt 0:00:41]} Nxc7 {[%emt 0:00:40]}
18. Nxb7 {[%emt 0:00:27]} Rb8 {[%emt 0:00:49]} 19. Rxd6 {[%emt 0:02:25]} f5 {
[%emt 0:04:23]} 20. Nc5 {[%emt 0:00:52]} Rfe8 {[%emt 0:00:50]} 21. Nxe6 {
[%emt 0:00:39]} Rxe6 {[%emt 0:00:34]} 22. Bd5 {[%emt 0:00:04]} Nxd5 {[%emt 0:
00:00]} 23. Rxe6 {[%emt 0:00:09]} Nf6 {[%emt 0:00:48]} 24. Rxa6 {[%emt 0:00:15]
} Rd8 {[%emt 0:00:23]} 25. c5 {[%emt 0:00:26]} Kf8 {[%emt 0:02:13]} 26. Rd6 {
[%emt 0:00:17]} Rc8 {[%emt 0:00:45]} 27. b4 {[%emt 0:00:35]} Ke7 {[%emt 0:00:
00]} 28. Rc1 {[%emt 0:00:28]} Rb8 {[%emt 0:03:39]} 29. Rb6 {[%emt 0:00:31]} Rc8
{[%emt 0:07:44]} 30. Rb7+ {[%emt 0:00:25]} 1-0

[Event "44th Chess Olympiad Women 2022"]
[Site "Chennai"]
[Date "2022.08.01"]
[Round "4.55"]
[White "Martins, Katlene Jussara"]
[Black "Deng, Jing Xin Crystal"]
[Result "0-1"]
[WhiteElo "1287"]
[BlackElo "1914"]
[Annotator "NA RC"]
[PlyCount "36"]
[EventDate "2022.??.??"]
[TimeControl "60"]

1. e4 {[%emt 0:00:01]} c5 {[%emt 0:00:49]} 2. Nf3 {[%emt 0:01:42]} Nc6 {
[%emt 0:00:00]} 3. Nc3 {[%emt 0:00:23]} g6 {[%emt 0:00:00]} 4. Bb5 {[%emt 0:00:
00]} Bg7 {[%emt 0:00:00]} 5. Bxc6 {[%emt 0:01:08]} dxc6 {[%emt 0:02:44]} 6. O-O
{[%emt 0:00:25]} Nf6 {[%emt 0:00:12]} 7. h3 {[%emt 0:02:00]} O-O {[%emt 0:00:
00]} 8. d4 {[%emt 0:00:48]} cxd4 {[%emt 0:01:00]} 9. Nxd4 {[%emt 0:00:21]} Qc7
{[%emt 0:09:30]} 10. Be3 {[%emt 0:02:16]} Rd8 {[%emt 0:02:37]} 11. Qc1 {
[%emt 0:00:58]} Nxe4 {[%emt 0:02:34]} 12. Rd1 {[%emt 0:03:02]} Nxc3 {[%emt 0:
00:00]} 13. bxc3 {[%emt 0:00:38]} b6 {[%emt 0:03:34]} 14. Bh6 {[%emt 0:02:08]}
Bb7 {[%emt 0:03:19]} 15. Bxg7 {[%emt 0:03:04]} Kxg7 {[%emt 0:00:09]} 16. Qa3 {
[%emt 0:02:14]} c5 {[%emt 0:00:39]} 17. Nb5 {[%emt 0:01:57]} Qc6 {[%emt 0:00:
00]} 18. Nxa7 {[%emt 0:00:14]} Qxg2# {[%emt 0:00:09]} 0-1

[Event "44th Chess Olympiad Women 2022"]
[Site "Chennai"]
[Date "2022.08.01"]
[Round "4.56"]
[White "Clarke, Adani"]
[Black "Benson, Maud"]
[Result "1-0"]
[WhiteElo "1812"]
[BlackElo "1334"]
[Annotator "NA RC"]
[PlyCount "43"]
[EventDate "2022.??.??"]
[TimeControl "60"]

1. d4 {[%emt 0:00:02]} Nf6 {[%emt 0:00:08]} 2. c4 {[%emt 0:00:05]} g6 {[%emt 0:
00:00]} 3. Nc3 {[%emt 0:00:12]} Bg7 {[%emt 0:00:07]} 4. e4 {[%emt 0:00:05]} d6
{[%emt 0:00:10]} 5. Be2 {[%emt 0:00:06]} Nc6 {[%emt 0:01:17]} 6. Be3 {[%emt 0:
00:00]} O-O {[%emt 0:00:18]} 7. g4 {[%emt 0:01:07]} e5 {[%emt 0:03:34]} 8. d5 {
[%emt 0:00:29]} Ne7 {[%emt 0:00:17]} 9. g5 {[%emt 0:01:40]} Nd7 {[%emt 0:02:51]
} 10. h4 {[%emt 0:01:25]} f5 {[%emt 0:01:14]} 11. gxf6 {[%emt 0:00:11]} Bxf6 {
[%emt 0:00:34]} 12. Qd2 {[%emt 0:06:18]} Qe8 {[%emt 0:06:42]} 13. h5 {[%emt 0:
00:00]} a6 {[%emt 0:00:37]} 14. Nf3 {[%emt 0:02:59]} Qf7 {[%emt 0:05:33]} 15.
O-O-O {[%emt 0:02:54]} b6 {[%emt 0:04:38]} 16. Bh6 {[%emt 0:04:04]} Re8 {
[%emt 0:02:24]} 17. Rdg1 {[%emt 0:04:16]} Kh8 {[%emt 0:04:41]} 18. Ng5 {
[%emt 0:06:01]} Bxg5 {[%emt 0:00:42]} 19. Bxg5 {[%emt 0:00:30]} Nf8 {[%emt 0:
00:00]} 20. Nd1 {[%emt 0:02:39]} Bd7 {[%emt 0:04:02]} 21. Rg3 {[%emt 0:02:55]}
Qg8 {[%emt 0:04:14]} 22. Bf6+ {[%emt 0:01:47]} 1-0

[Event "44th Chess Olympiad Women 2022"]
[Site "Chennai"]
[Date "2022.08.01"]
[Round "4.56"]
[White "Dotse Dzidzor Esi"]
[Black "Curwin, Nickaylah"]
[Result "0-1"]
[WhiteElo "1195"]
[BlackElo "1499"]
[Annotator "NA RC"]
[PlyCount "105"]
[EventDate "2022.??.??"]
[TimeControl "60"]

1. d4 {[%emt 0:00:08]} d5 {[%emt 0:00:06]} 2. c4 {[%emt 0:00:04]} c6 {[%emt 0:
00:00]} 3. Nc3 {[%emt 0:00:15]} Nf6 {[%emt 0:00:26]} 4. Nf3 {[%emt 0:00:54]} a6
{[%emt 0:00:09]} 5. cxd5 {[%emt 0:00:50]} cxd5 {[%emt 0:00:23]} 6. Bf4 {
[%emt 0:00:18]} Nc6 {[%emt 0:01:05]} 7. e3 {[%emt 0:00:46]} Bg4 {[%emt 0:00:53]
} 8. Be2 {[%emt 0:00:18]} e6 {[%emt 0:01:22]} 9. a4 {[%emt 0:02:54]} Bb4 {
[%emt 0:02:45]} 10. O-O {[%emt 0:06:32]} Rc8 {[%emt 0:02:04]} 11. Qb3 {[%emt 0:
00:00]} Ne4 {[%emt 0:04:08]} 12. Rfe1 {[%emt 0:01:51]} Qa5 {[%emt 0:02:21]} 13.
Rac1 {[%emt 0:03:45]} Bxf3 {[%emt 0:02:22]} 14. Bxf3 {[%emt 0:07:25]} Nd2 {
[%emt 0:01:16]} 15. Qd1 {[%emt 0:00:41]} Nxf3+ {[%emt 0:05:28]} 16. gxf3 {
[%emt 0:02:21]} O-O {[%emt 0:01:26]} 17. Qb3 {[%emt 0:01:08]} Ne7 {[%emt 0:00:
00]} 18. Rc2 {[%emt 0:00:46]} Nf5 {[%emt 0:01:34]} 19. Bg3 {[%emt 0:01:07]} Rc4
{[%emt 0:02:12]} 20. Rec1 {[%emt 0:00:47]} Rfc8 {[%emt 0:01:52]} 21. Na2 {
[%emt 0:00:52]} Rxc2 {[%emt 0:07:11]} 22. Rxc2 {[%emt 0:01:09]} Rxc2 {[%emt 0:
00:00]} 23. Qxc2 {[%emt 0:01:14]} Nxg3 {[%emt 0:02:53]} 24. Nxb4 {[%emt 0:00:
00]} Ne2+ {[%emt 0:00:47]} 25. Qxe2 {[%emt 0:02:44]} Qxb4 {[%emt 0:00:08]} 26.
Qc2 {[%emt 0:00:32]} g6 {[%emt 0:00:29]} 27. f4 {[%emt 0:01:39]} Kg7 {[%emt 0:
00:00]} 28. b3 {[%emt 0:02:30]} b5 {[%emt 0:05:38]} 29. Qa2 {[%emt 0:02:14]}
Qc3 {[%emt 0:01:48]} 30. Kg2 {[%emt 0:02:14]} b4 {[%emt 0:00:55]} 31. a5 {
[%emt 0:01:26]} Qc6 {[%emt 0:00:23]} 32. Kf3 {[%emt 0:00:40]} Qb5 {[%emt 0:00:
00]} 33. Qa1 {[%emt 0:03:24]} Qd3 {[%emt 0:01:04]} 34. Qa4 {[%emt 0:00:43]} Qc3
{[%emt 0:05:26]} 35. h4 {[%emt 0:04:09]} h5 {[%emt 0:02:25]} 36. Ke2 {[%emt 0:
00:00]} Qc2+ {[%emt 0:05:14]} 37. Kf3 {[%emt 0:02:14]} Qd1+ 38. Kg2 {[%emt 0:
00:00]} Qg4+ {[%emt 0:02:02]} 39. Kf1 {[%emt 0:00:37]} Qxh4 {[%emt 0:00:17]}
40. Qxb4 {[%emt 0:00:27]} Qh1+ {[%emt 0:00:15]} 41. Ke2 {[%emt 0:30:23]} h4 {
[%emt 0:30:25]} 42. Qd2 {[%emt 0:00:29]} Qg2 {[%emt 0:00:50]} 43. Qe1 {[%emt 0:
00:00]} h3 {[%emt 0:00:19]} 44. Qf1 {[%emt 0:00:17]} Qf3+ {[%emt 0:01:47]} 45.
Ke1 {[%emt 0:01:08]} Qe4 {[%emt 0:03:24]} 46. Qg1 {[%emt 0:01:05]} Qg2 {
[%emt 0:00:15]} 47. Qxg2 {[%emt 0:06:04]} hxg2 {[%emt 0:00:14]} 48. Kd2 {
[%emt 0:00:30]} g1=Q {[%emt 0:00:30]} 49. Kc3 {[%emt 0:00:13]} Qxf2 {[%emt 0:
00:00]} 50. Kb4 {[%emt 0:00:17]} Qxe3 {[%emt 0:00:24]} 51. Kc5 {[%emt 0:00:29]}
Qd3 {[%emt 0:00:09]} 52. Kb6 {[%emt 0:00:23]} Qxd4+ {[%emt 0:00:43]} 53. Kxa6 {
[%emt 0:00:56]} 0-1

[Event "44th Chess Olympiad Women 2022"]
[Site "Chennai"]
[Date "2022.08.01"]
[Round "4.56"]
[White "Felix, Tobi"]
[Black "Miller, Rachel"]
[Result "0-1"]
[WhiteElo "1460"]
[BlackElo "1961"]
[Annotator "NA RC"]
[PlyCount "64"]
[EventDate "2022.??.??"]
[TimeControl "60"]

1. d4 {[%emt 0:00:07]} d5 {[%emt 0:00:11]} 2. Bf4 {[%emt 0:00:13]} c5 {[%emt 0:
00:00]} 3. e3 {[%emt 0:00:09]} Nc6 {[%emt 0:00:25]} 4. c3 {[%emt 0:00:15]} Bf5
{[%emt 0:00:28]} 5. Bd3 {[%emt 0:00:10]} Bxd3 {[%emt 0:00:48]} 6. Qxd3 {
[%emt 0:00:06]} c4 {[%emt 0:01:27]} 7. Qc2 {[%emt 0:00:10]} Nf6 {[%emt 0:00:43]
} 8. Nd2 {[%emt 0:00:22]} b5 {[%emt 0:02:23]} 9. e4 {[%emt 0:04:01]} dxe4 {
[%emt 0:00:23]} 10. Nxe4 {[%emt 0:00:07]} Nd5 {[%emt 0:00:11]} 11. Bg3 {
[%emt 0:01:06]} g6 {[%emt 0:02:48]} 12. Nf3 {[%emt 0:05:40]} Bh6 {[%emt 0:00:
00]} 13. Ne5 {[%emt 0:14:04]} Nxe5 {[%emt 0:05:29]} 14. Bxe5 {[%emt 0:00:33]}
O-O {[%emt 0:00:20]} 15. O-O {[%emt 0:02:59]} Qc8 {[%emt 0:04:19]} 16. a3 {
[%emt 0:07:06]} f6 {[%emt 0:03:38]} 17. Bg3 {[%emt 0:00:36]} f5 {[%emt 0:00:53]
} 18. Nc5 {[%emt 0:02:00]} f4 {[%emt 0:00:24]} 19. Bh4 {[%emt 0:00:37]} g5 {
[%emt 0:00:37]} 20. Qe2 {[%emt 0:11:23]} gxh4 {[%emt 0:06:15]} 21. Qh5 {
[%emt 0:00:48]} Qc6 {[%emt 0:00:33]} 22. Rfe1 {[%emt 0:02:53]} Rf6 {[%emt 0:00:
00]} 23. Re5 {[%emt 0:01:43]} Rd8 {[%emt 0:04:38]} 24. Rae1 {[%emt 0:00:40]}
Rg6 {[%emt 0:03:23]} 25. Re6 {[%emt 0:05:19]} Rd6 {[%emt 0:01:51]} 26. Qf5 {
[%emt 0:15:57]} Ne3 {[%emt 0:04:54]} 27. Rxg6+ {[%emt 0:09:33]} Rxg6 {[%emt 0:
00:00]} 28. d5 {[%emt 0:01:21]} Qxc5 {[%emt 0:05:58]} 29. fxe3 {[%emt 0:00:34]}
e6 {[%emt 0:00:44]} 30. Qe5 {[%emt 0:01:05]} Qxd5 {[%emt 0:00:31]} 31. Qb8+ {
[%emt 0:01:17]} Bf8 {[%emt 0:00:14]} 32. e4 {[%emt 0:00:15]} Qd2 {[%emt 0:00:
00]} 0-1

[Event "44th Chess Olympiad Women 2022"]
[Site "Chennai"]
[Date "2022.08.01"]
[Round "4.56"]
[White "Watson, Gabriella"]
[Black "Appau Abena Tiwaa"]
[Result "1-0"]
[WhiteElo "1164"]
[BlackElo "1103"]
[Annotator "NA RC"]
[PlyCount "49"]
[EventDate "2022.??.??"]
[TimeControl "60"]

1. d4 {[%emt 0:00:05]} Nf6 {[%emt 0:00:14]} 2. Bf4 {[%emt 0:00:07]} g6 {
[%emt 0:00:32]} 3. Nc3 {[%emt 0:00:14]} Bg7 {[%emt 0:00:31]} 4. e4 {[%emt 0:00:
00]} d6 {[%emt 0:00:37]} 5. Qd2 {[%emt 0:00:28]} c6 {[%emt 0:01:08]} 6. f3 {
[%emt 0:00:32]} Nbd7 {[%emt 0:01:40]} 7. O-O-O {[%emt 0:10:19]} Qa5 {[%emt 0:
00:00]} 8. g4 {[%emt 0:17:15]} h6 {[%emt 0:04:57]} 9. e5 {[%emt 0:15:39]} dxe5
{[%emt 0:03:11]} 10. dxe5 {[%emt 0:04:58]} Ng8 {[%emt 0:06:03]} 11. e6 {
[%emt 0:09:11]} fxe6 {[%emt 0:03:19]} 12. Qd3 {[%emt 0:09:39]} Kf7 {[%emt 0:00:
00]} 13. h4 {[%emt 0:05:40]} Nc5 {[%emt 0:08:37]} 14. Qc4 {[%emt 0:01:21]} Qb6
{[%emt 0:02:32]} 15. Re1 {[%emt 0:05:35]} Bd7 {[%emt 0:03:15]} 16. Be3 {
[%emt 0:00:25]} Qc7 {[%emt 0:12:29]} 17. Bxc5 {[%emt 0:02:22]} b6 {[%emt 0:00:
00]} 18. Be3 {[%emt 0:00:34]} Nf6 {[%emt 0:02:18]} 19. Bf4 {[%emt 0:00:29]} Qb7
{[%emt 0:01:53]} 20. Bd3 {[%emt 0:01:02]} Nd5 {[%emt 0:01:58]} 21. Be5 {
[%emt 0:01:13]} b5 {[%emt 0:02:27]} 22. Qe4 {[%emt 0:00:25]} Nxc3 {[%emt 0:00:
00]} 23. Qxg6+ {[%emt 0:00:31]} Kf8 {[%emt 0:01:25]} 24. Bxg7+ {[%emt 0:00:23]}
Kg8 {[%emt 0:01:16]} 25. Bxh6# {[%emt 0:00:14]} 1-0

[Event "44th Chess Olympiad Women 2022"]
[Site "Chennai"]
[Date "2022.08.01"]
[Round "4.57"]
[White "Aponte, Samantha"]
[Black "Abeysinghe, H M H Janandani"]
[Result "0-1"]
[WhiteElo "1087"]
[BlackElo "1516"]
[Annotator "NA RC"]
[PlyCount "64"]
[EventDate "2022.??.??"]
[TimeControl "60"]

1. e4 {[%emt 0:00:03]} c5 {[%emt 0:00:09]} 2. b3 {[%emt 0:00:18]} Nc6 {[%emt 0:
00:00]} 3. Bb2 {[%emt 0:00:22]} a6 {[%emt 0:00:21]} 4. f4 {[%emt 0:01:30]} e6 {
[%emt 0:01:10]} 5. Nf3 {[%emt 0:02:40]} Nf6 {[%emt 0:03:39]} 6. Nc3 {[%emt 0:
00:00]} d5 {[%emt 0:02:28]} 7. d3 {[%emt 0:02:40]} Be7 {[%emt 0:03:27]} 8. Qd2
{[%emt 0:09:04]} O-O {[%emt 0:02:25]} 9. Be2 {[%emt 0:02:40]} b5 {[%emt 0:00:
00]} 10. e5 {[%emt 0:09:36]} Nd7 {[%emt 0:02:47]} 11. O-O {[%emt 0:01:35]} b4 {
[%emt 0:05:24]} 12. Nd1 {[%emt 0:04:14]} Qb6 {[%emt 0:01:36]} 13. Kh1 {[%emt 0:
00:00]} a5 {[%emt 0:01:43]} 14. Nf2 {[%emt 0:10:24]} f6 {[%emt 0:03:16]} 15. d4
{[%emt 0:09:06]} fxe5 {[%emt 0:02:45]} 16. dxe5 {[%emt 0:05:44]} Ba6 {[%emt 0:
00:00]} 17. Nh3 {[%emt 0:05:18]} h6 {[%emt 0:04:41]} 18. Rac1 {[%emt 0:04:42]}
a4 {[%emt 0:01:34]} 19. Bxa6 {[%emt 0:05:14]} Rxa6 {[%emt 0:00:50]} 20. Rce1 {
[%emt 0:04:42]} axb3 {[%emt 0:01:03]} 21. axb3 {[%emt 0:00:31]} Ra2 {[%emt 0:
00:00]} 22. Bc1 {[%emt 0:02:38]} Na5 {[%emt 0:04:00]} 23. Qd3 {[%emt 0:01:29]}
c4 {[%emt 0:03:33]} 24. bxc4 {[%emt 0:00:51]} Nc5 {[%emt 0:01:03]} 25. Qe3 {
[%emt 0:02:50]} Nxc4 {[%emt 0:00:23]} 26. Qf2 {[%emt 0:00:54]} b3 {[%emt 0:00:
00]} 27. Nd4 {[%emt 0:01:52]} Nd3 {[%emt 0:06:22]} 28. Qe2 {[%emt 0:02:17]}
Nxe1 {[%emt 0:00:12]} 29. Qxe1 {[%emt 0:01:07]} Qxd4 {[%emt 0:02:23]} 30. cxb3
{[%emt 0:00:48]} Na5 {[%emt 0:01:01]} 31. Be3 {[%emt 0:01:32]} Qb2 {[%emt 0:00:
00]} 32. Bd2 {[%emt 0:01:35]} Qxd2 {[%emt 0:00:16]} 0-1